fUST/lending_fUST_20240703
["ID","MTS","AMOUNT","RATE_DAILY","PERIOD"]
[330992233,1719993041911,-803.02,0.00014001,2]
[330992234,1719993041921,-500.0,0.00014001,2]
[330992235,1719993041930,-1512.63,0.00014001,2]
[330992236,1719993041940,-500.0,0.00014001,2]
[330992237,1719993041949,-566.67,0.00014001,2]
[330992238,1719993041958,-500.0,0.00014001,2]
[330992239,1719993041968,-500.0,0.00014001,2]
[330992240,1719993041978,-500.0,0.00014001,2]
[330992241,1719993041988,-500.0,0.00014001,2]
[330992242,1719993041998,-500.0,0.00014001,2]
[330992243,1719993042007,-500.0,0.00014001,2]
[330992244,1719993042017,-500.0,0.00014001,2]
[330992245,1719993042026,-500.0,0.00014001,2]
[330992246,1719993042036,-500.0,0.00014001,2]
[330992247,1719993042045,-500.0,0.00014001,2]
[330992248,1719993042054,-631.99,0.00014001,2]
[330992249,1719993042064,-500.0,0.00014001,2]
[330992250,1719993042073,-500.0,0.00014001,2]
[330992251,1719993042082,-560.54,0.00014001,2]
[330992252,1719993042091,-831.9,0.00014001,2]
[330992253,1719993042101,-500.0,0.00014001,2]
[330992254,1719993042111,-654.09,0.00014001,2]
[330992255,1719993042120,-500.0,0.00014001,2]
[330992256,1719993042130,-708.23,0.00014001,2]
[330992257,1719993042144,-3167.01,0.00014001,2]
[330992258,1719993042153,-500.0,0.00014001,2]
[330992259,1719993042163,-500.0,0.00014001,2]
[330992260,1719993042173,-858.37,0.00014001,2]
[330992261,1719993042183,-500.0,0.00014001,2]
[330992262,1719993042193,-500.0,0.00014001,2]
[330992263,1719993042203,-719.39,0.00014001,2]
[330992264,1719993042212,-635.17779932,0.00014001,2]
[330992265,1719993042223,-500.0,0.00014001,2]
[330992266,1719993042235,-516.58,0.00014001,2]
[330992267,1719993042244,-500.0,0.00014001,2]
[330992268,1719993042254,-1912.38,0.00014001,2]
[330992269,1719993042264,-1476.47,0.00014001,2]
[330992270,1719993042274,-913.73,0.00014001,2]
[330992271,1719993042283,-501.28627835,0.00014001,2]
[330992272,1719993042294,-500.0,0.00014001,2]
[330992273,1719993042303,-772.22,0.00014001,2]
[330992274,1719993042313,-500.0,0.00014001,2]
[330992275,1719993042323,-500.0,0.00014001,2]
[330992276,1719993042333,-500.0,0.00014001,2]
[330992277,1719993042342,-500.0,0.00014001,2]
[330992278,1719993042352,-500.0,0.00014001,2]
[330992279,1719993042362,-2294.54,0.00014001,2]
[330992280,1719993042372,-7400.47,0.00014001,2]
[330992281,1719993042381,-500.0,0.00014001,2]
[330992282,1719993042391,-500.0,0.00014001,2]
[330992283,1719993042400,-500.0,0.00014001,2]
[330992284,1719993042410,-500.0,0.00014002,2]
[330992285,1719993042419,-217.70805122,0.00014002,2]
[330992286,1719993042429,-500.0,0.00014002,2]
[330992287,1719993042439,-186.39639146,0.00014002,2]
[330992288,1719993042449,-500.0,0.00014002,2]
[330992289,1719993042460,-500.0,0.00014002,2]
[330992290,1719993042469,-500.0,0.00014002,2]
[330992291,1719993042479,-151.0,0.00014002,2]
[330992292,1719993042488,-151.0,0.00014002,2]
[330992293,1719993042498,-500.0,0.00014002,2]
[330992294,1719993042508,-500.0,0.00014002,2]
[330992295,1719993042518,-502.22603386,0.00014002,2]
[330992296,1719993042527,-503.6787692,0.00014002,2]
[330992297,1719993042537,-505.35597737,0.00014002,2]
[330992298,1719993042547,-500.0,0.00014002,2]
[330992299,1719993042556,-500.0,0.00014002,2]
[330992300,1719993042566,-500.0,0.00014002,2]
[330992301,1719993042576,-500.0,0.00014002,2]
[330992302,1719993042585,-397.89576731,0.00014002,2]
[330992303,1719993042594,-500.0,0.00014002,2]
[330992304,1719993042603,-500.0,0.00014002,2]
[330992305,1719993042616,-386.37281699,0.00014002,2]
[330992306,1719993042626,-543.38,0.00014002,2]
[330992307,1719993042635,-500.0,0.00014002,2]
[330992308,1719993042644,-500.0,0.00014002,2]
[330992309,1719993042653,-500.0,0.00014002,2]
[330992310,1719993042663,-6991.96,0.00014002,2]
[330992311,1719993042672,-503.94524601,0.00014002,2]
[330992312,1719993042682,-500.0,0.00014002,2]
[330992313,1719993042691,-502.38431078,0.00014002,2]
[330992314,1719993042702,-500.0,0.00014002,2]
[330992315,1719993042712,-502.67928315,0.00014002,2]
[330992316,1719993042722,-500.0,0.00014002,2]
[330992317,1719993042732,-535.60306264,0.00014002,2]
[330992318,1719993042741,-500.0,0.00014002,2]
[330992319,1719993042751,-543.12040355,0.00014002,2]
[330992320,1719993042761,-500.0,0.00014002,2]
[330992322,1719993042771,-500.0,0.00014002,2]
[330992323,1719993042781,-500.0,0.00014002,2]
[330992324,1719993042790,-501.00228757,0.00014002,2]
[330992325,1719993042799,-171.926778,0.00014002,2]
[330992326,1719993042809,-500.0,0.00014002,2]
[330992327,1719993042819,-500.0,0.00014002,2]
[330992328,1719993042828,-768.78,0.00014002,2]
[330992329,1719993042838,-500.0,0.00014002,2]
[330992330,1719993042847,-502.92658653,0.00014002,2]
[330992331,1719993042856,-500.0,0.00014002,2]
[330992332,1719993042867,-500.0,0.00014002,2]
[330992333,1719993042877,-700.54,0.00014002,2]
[330992334,1719993042889,-500.0,0.00014002,2]
[330992335,1719993042898,-500.0,0.00014002,2]
[330992336,1719993042908,-500.0,0.00014002,2]
[330992337,1719993042918,-500.0,0.00014002,2]
[330992338,1719993042927,-502.08577285,0.00014002,2]
[330992339,1719993042936,-309.161953,0.00014002,2]
[330992340,1719993042946,-309.161953,0.00014002,2]
[330992341,1719993042955,-309.161953,0.00014002,2]
[330992342,1719993042966,-309.161953,0.00014002,2]
[330992343,1719993042975,-309.161953,0.00014002,2]
[330992344,1719993042985,-500.0,0.00014002,2]
[330992345,1719993042995,-309.161953,0.00014002,2]
[330992346,1719993043004,-309.161953,0.00014002,2]
[330992347,1719993043014,-309.161953,0.00014002,2]
[330992348,1719993043025,-309.161953,0.00014002,2]
[330992349,1719993043035,-309.161953,0.00014002,2]
[330992350,1719993043045,-500.0,0.00014002,2]
[330992351,1719993043056,-500.0,0.00014002,2]
[330992352,1719993043066,-500.0,0.00014002,2]
[330992353,1719993043076,-182.20060523,0.00014002,2]
[330992354,1719993043086,-654.41,0.00014002,2]
[330992355,1719993043095,-190.65889521,0.00014002,2]
[330992356,1719993043105,-500.0,0.00014002,2]
[330992357,1719993043116,-506.2284485,0.00014002,2]
[330992358,1719993043125,-370.69548416,0.00014002,2]
[330992360,1719993043133,-500.0,0.00014002,2]
[330992362,1719993043146,-500.0,0.00014002,2]
[330992363,1719993043156,-514.14,0.00014002,2]
[330992364,1719993043165,-526.13,0.00014002,2]
[330992365,1719993043174,-509.76049362,0.00014002,2]
[330992367,1719993043184,-826.07,0.00014002,2]
[330992368,1719993043195,-508.33996726,0.00014002,2]
[330992369,1719993043205,-500.0,0.00014002,2]
[330992370,1719993043215,-500.0,0.00014002,2]
[330992371,1719993043225,-500.0,0.00014002,2]
[330992372,1719993043235,-500.0,0.00014002,2]
[330992373,1719993043245,-669.42,0.00014002,2]
[330992374,1719993043254,-805.34,0.00014002,2]
[330992375,1719993043262,-500.0,0.00014002,2]
[330992376,1719993043272,-500.0,0.00014002,2]
[330992377,1719993043281,-791.86,0.00014002,2]
[330992378,1719993043291,-500.0,0.00014002,2]
[330992379,1719993043300,-6157.13,0.00014002,2]
[330992380,1719993043309,-500.0,0.00014002,2]
[330992381,1719993043318,-500.0,0.00014002,2]
[330992382,1719993043327,-500.0,0.00014002,2]
[330992383,1719993043336,-500.0,0.00014002,2]
[330992384,1719993043346,-566.7,0.00014002,2]
[330992385,1719993043355,-1082.3,0.00014002,2]
[330992386,1719993043365,-505.53365982,0.00014003,2]
[330992387,1719993043375,-151.0,0.00014003,2]
[330992388,1719993043385,-223.845061,0.00014003,2]
[330992389,1719993043397,-500.0,0.00014003,2]
[330992390,1719993043406,-500.0,0.00014003,2]
[330992391,1719993043416,-681.74,0.00014003,2]
[330992392,1719993043425,-500.0,0.00014003,2]
[330992393,1719993043435,-500.0,0.00014003,2]
[330992394,1719993043444,-500.0,0.00014003,2]
[330992395,1719993043453,-500.0,0.00014003,2]
[330992396,1719993043463,-500.0,0.00014003,2]
[330992397,1719993043472,-500.0,0.00014003,2]
[330992398,1719993043481,-500.0,0.00014003,2]
[330992399,1719993043491,-700.54,0.00014003,2]
[330992400,1719993043501,-309.161953,0.00014003,2]
[330992401,1719993043510,-309.161953,0.00014003,2]
[330992402,1719993043519,-309.161953,0.00014003,2]
[330992403,1719993043528,-309.161953,0.00014003,2]
[330992404,1719993043537,-627.74271468,0.00014003,2]
[330992405,1719993043547,-500.0,0.00014003,2]
[330992406,1719993043556,-11564.89,0.00014003,2]
[330992407,1719993043565,-612.7,0.00014003,2]
[330992408,1719993043574,-1064.43,0.00014004,2]
[330992409,1719993043583,-715.95,0.00014004,2]
[330992410,1719993043593,-883.86,0.00014004,2]
[330992411,1719993043602,-607.0251559,0.00014004,2]
[330992417,1719993043724,-8703.4148441,0.00014004,2]
[330992418,1719993043733,-3273.74,0.00014004,2]
[330992419,1719993043742,-500.0,0.00014004,2]
[330992420,1719993043752,-309.161953,0.00014004,2]
[330992421,1719993043761,-309.161953,0.00014004,2]
[330992422,1719993043770,-309.161953,0.00014004,2]
[330992423,1719993043779,-309.161953,0.00014004,2]
[330992424,1719993043789,-309.161953,0.00014004,2]
[330992425,1719993043798,-309.161962,0.00014004,2]
[330992426,1719993043807,-500.0,0.00014004,2]
[330992427,1719993043817,-500.0,0.00014004,2]
[330992428,1719993043826,-723.5426321,0.00014004,2]
[330992484,1719993046779,-151.0,0.00014001,2]
[330992485,1719993046788,-151.0,0.00014001,2]
[330992486,1719993046797,-533.25294692,0.00014002,2]
[330992487,1719993046815,-151.0,0.00014002,2]
[330992488,1719993046829,-151.0,0.00014002,2]
[330992489,1719993046840,-215.522532,0.00014002,2]
[330992490,1719993046851,-899.1773679,0.00014004,2]
[330992491,1719993046864,-5433.26,0.00014004,2]
[330992492,1719993046873,-1915.53,0.00014004,2]
[330992493,1719993046883,-170.18826685,0.00014039,2]
[330992494,1719993046893,-7350.0,0.00014086,2]
[330992495,1719993046903,-165.722,0.00014124,2]
[330992496,1719993046913,-877.0,0.00014124,2]
[330992497,1719993046923,-232.289,0.00014124,2]
[330992498,1719993046936,-170.18826685,0.00014176,2]
[330992499,1719993046946,-1152.21455243,0.0001425,2]
[330992500,1719993046956,-787.25,0.00014275,2]
[330992501,1719993046968,-1407.33,0.00014275,2]
[330992502,1719993046978,-670.85,0.00014275,2]
[330992503,1719993046989,-919.19,0.00014275,2]
[330992504,1719993046999,-700.54,0.00014275,2]
[330992505,1719993047009,-575.26,0.00014275,2]
[330992506,1719993047019,-500.0,0.00014275,2]
[330992507,1719993047028,-500.0,0.00014275,2]
[330992508,1719993047038,-649.15344781,0.00014275,2]
[330992509,1719993047048,-1512.63,0.00014275,2]
[330992510,1719993047058,-347.33065187,0.00014275,2]
[330992511,1719993047068,-566.67,0.00014275,2]
[330992512,1719993047079,-375.48,0.00014275,2]
[330992513,1719993047089,-631.99,0.00014275,2]
[330992514,1719993047099,-500.0,0.00014275,2]
[330992515,1719993047109,-560.54,0.00014275,2]
[330992516,1719993047119,-831.9,0.00014275,2]
[330992517,1719993047128,-500.0,0.00014275,2]
[330992518,1719993047139,-654.09,0.00014275,2]
[330992519,1719993047151,-319.64320157,0.00014275,2]
[330992520,1719993047162,-708.23,0.00014275,2]
[330992521,1719993047171,-3167.01,0.00014275,2]
[330992522,1719993047182,-500.0,0.00014275,2]
[330992523,1719993047192,-500.0,0.00014275,2]
[330992524,1719993047201,-858.37,0.00014275,2]
[330992525,1719993047211,-719.39,0.00014275,2]
[330992526,1719993047224,-516.58,0.00014275,2]
[330992527,1719993047235,-1912.38,0.00014275,2]
[330992528,1719993047245,-1476.47,0.00014275,2]
[330992529,1719993047255,-913.73,0.00014275,2]
[330992530,1719993047265,-500.0,0.00014275,2]
[330992531,1719993047274,-772.22,0.00014275,2]
[330992532,1719993047284,-500.0,0.00014275,2]
[330992533,1719993047294,-359.41746816,0.00014275,2]
[330992534,1719993047304,-2294.54,0.00014275,2]
[330992535,1719993047314,-7400.47,0.00014275,2]
[330992536,1719993047324,-500.0,0.00014275,2]
[330992537,1719993047340,-500.0,0.00014275,2]
[330992538,1719993047355,-1815.98251121,0.00014276,2]
[330992539,1719993047371,-500.0,0.00014276,2]
[330992540,1719993047385,-500.0,0.00014276,2]
[330992541,1719993047399,-500.0,0.00014276,2]
[330992542,1719993047411,-543.38,0.00014276,2]
[330992543,1719993047423,-500.0,0.00014276,2]
[330992544,1719993047435,-500.0,0.00014276,2]
[330992545,1719993047448,-3205.9310772,0.00014276,2]
[330992546,1719993073109,721.64,0.00014,2]
[330992547,1719993120140,1290.05,0.00014,2]
[330992548,1719993121434,300.0,0.00014,2]
[330992549,1719993123337,300.0,0.00014,2]
[330992550,1719993132500,154.83742071,9.999e-05,2]
[330992552,1719993181551,300.0,0.00014,2]
[330992553,1719993184613,300.0,0.00014,2]
[330992554,1719993191711,614.95,0.00014,2]
[330992555,1719993204874,842.59,0.00014,2]
[330992556,1719993240976,300.0,0.00014,2]
[330992557,1719993292405,195.36743126,0.0001,2]
[330992558,1719993301063,300.0,0.00014,2]
[330992559,1719993303643,270.0,0.00014,2]
[330992560,1719993311343,527.32,0.00014,2]
[330992574,1719993331898,195.36743126,0.00012121,2]
[330992575,1719993348391,500.0,0.00014,2]
[330992576,1719993361884,300.0,0.00014,2]
[330992577,1719993368504,223.86252991,9.999e-05,2]
[330992578,1719993417530,519.45,0.00014,2]
[330992579,1719993422310,300.0,0.00014,2]
[330992582,1719993453320,-1000.0,0.00015,15]
[330992583,1719993459338,513.82,0.00014,2]
[330992584,1719993462048,-306.030258,0.000149,5]
[330992585,1719993468309,183.15863804,0.00013904,2]
[330992586,1719993469212,206.5559886,0.00014,2]
[330992587,1719993481138,649.21,0.00014,2]
[330992588,1719993481913,300.0,0.00014,2]
[330992589,1719993482537,-3129.70281554,0.00014999,4]
[330992590,1719993492667,500.0,0.00014,2]
[330992606,1719993526496,659.44,0.00014,2]
[330992607,1719993541100,300.0,0.00014,2]
[330992608,1719993557744,247.83012328,0.00014,2]
[330992609,1719993592087,500.0,0.00014,2]
[330992610,1719993601709,300.0,0.00014,2]
[330992611,1719993604752,3129.70281554,0.00014999,4]
[330992614,1719993608037,620.00000005,0.00013879,2]
[330992615,1719993608406,195.36743126,0.0001,2]
[330992616,1719993615365,500.0,0.00014,2]
[330992618,1719993774270,1217.82312651,0.00014999,4]
[330992621,1719993865165,183.15863804,0.00013902,2]
[330992622,1719993946122,231.03421325,0.00014,2]
[330992626,1719993968967,494.14797639,9.999e-05,2]
[330992627,1719993969701,500.0,0.00014,2]
[330992630,1719993985181,832.78,0.00014,2]
[330992635,1719994051997,162.443201,0.00013699,2]
[330992636,1719994064787,333.55816013,0.00014,2]
[330992637,1719994068564,500.0,0.00014,2]
[330992638,1719994080590,641.52,0.00014,2]
[330992639,1719994106348,509.36278668,0.00014,2]
[330992640,1719994108480,458.01854157,9.999e-05,2]
[330992641,1719994109396,195.36743126,0.0001,2]
[330992643,1719994115422,505.27921539,0.00014,2]
[330992644,1719994118102,758.87,0.00014,2]
[330992645,1719994127482,-500.0,0.00014001,2]
[330992646,1719994127511,-267.57012372,0.00014001,2]
[330992647,1719994127592,-232.42987628,0.00014001,2]
[330992648,1719994127621,-500.0,0.00014001,2]
[330992649,1719994127652,-35.14024744,0.00014001,2]
[330992650,1719994151954,-464.85975256,0.00014001,2]
[330992651,1719994151985,-267.47246558,0.00014001,2]
[330992652,1719994152014,-65.94071053,0.00014001,2]
[330992653,1719994152047,-434.05928947,0.00014001,2]
[330992655,1719994152075,-205.7297764,0.00014001,2]
[330992661,1719994176952,-500.0,0.00014001,2]
[330992662,1719994176982,-327.03416856,0.00014001,2]
[330992663,1719994177016,-284.59260078,0.00014001,2]
[330992664,1719994177044,-500.0,0.00014001,2]
[330992665,1719994177072,-11.36093909,0.00014001,2]
[330992666,1719994181748,500.0,0.00014,2]
[330992667,1719994202068,-531.72906091,0.00014001,2]
[330992668,1719994202100,-327.76486182,0.00014001,2]
[330992669,1719994202137,-172.23513818,0.00014001,2]
[330992670,1719994202165,-500.0,0.00014001,2]
[330992671,1719994202192,-105.72283521,0.00014001,2]
[330992672,1719994204128,520.46,0.00014,2]
[330992673,1719994217021,497.67406651,0.00014,2]
[330992705,1719994234353,500.0,0.00014,2]
[330992717,1719994238539,-547.60716479,0.00014001,2]
[330992719,1719994238551,-500.0,0.00014001,2]
[330992721,1719994238560,-500.0,0.00014001,2]
[330992723,1719994238569,-506.22697381,0.00014001,2]
[330992725,1719994238580,-292.92132195,0.00014001,2]
[330992727,1719994238593,-215.54673525,0.00014001,2]
[330992729,1719994238604,-500.0,0.00014001,2]
[330992731,1719994238614,-1451.74,0.00014001,2]
[330992733,1719994238624,-579.32,0.00014001,2]
[330992735,1719994238634,-500.0,0.00014001,2]
[330992737,1719994238645,-500.0,0.00014001,2]
[330992739,1719994238655,-500.0,0.00014001,2]
[330992741,1719994238667,-503.03,0.00014001,2]
[330992743,1719994238678,-786.84,0.00014001,2]
[330992745,1719994238687,-1478.3,0.00014001,2]
[330992748,1719994238696,-1753.02,0.00014001,2]
[330992750,1719994238706,-837.58,0.00014001,2]
[330992752,1719994238715,-7042.96,0.00014001,2]
[330992754,1719994238725,-716.72,0.00014001,2]
[330992756,1719994238735,-2247.94269303,0.00014001,2]
[330992758,1719994238744,-504.29229539,0.00014001,2]
[330992791,1719994241122,-300.33770461,0.00014001,2]
[330992792,1719994241131,-435.57109481,0.00014002,2]
[330992793,1719994241190,-191.56890519,0.00014002,2]
[330992794,1719994241199,-469.49845301,0.00014002,2]
[330992879,1719994245739,626.11,0.00014,2]
[330992930,1719994249160,-34.71154699,0.00014002,2]
[330992932,1719994249171,-449.19,0.00014002,2]
[330992934,1719994249180,-771.79,0.00014002,2]
[330992936,1719994249193,-500.0,0.00014002,2]
[330992938,1719994249203,-500.0,0.00014002,2]
[330992940,1719994249212,-691.57,0.00014002,2]
[330992942,1719994249221,-1236.3,0.00014002,2]
[330992944,1719994249231,-500.0,0.00014002,2]
[330992946,1719994249240,-589.33,0.00014002,2]
[330992948,1719994249249,-807.48,0.00014002,2]
[330992950,1719994249258,-500.0,0.00014002,2]
[330992952,1719994249268,-500.0,0.00014002,2]
[330992954,1719994249278,-500.0,0.00014002,2]
[330992956,1719994249287,-500.0,0.00014002,2]
[330992958,1719994249296,-505.35,0.00014002,2]
[330992960,1719994249306,-500.0,0.00014002,2]
[330992962,1719994249315,-500.0,0.00014002,2]
[330992964,1719994249324,-500.0,0.00014002,2]
[330992966,1719994249333,-500.0,0.00014002,2]
[330992968,1719994249342,-500.0,0.00014002,2]
[330992970,1719994249352,-2217.05,0.00014002,2]
[330992972,1719994249362,-500.0,0.00014002,2]
[330992974,1719994249371,-500.0,0.00014002,2]
[330992976,1719994249380,-500.0,0.00014002,2]
[330992978,1719994249390,-500.0,0.00014002,2]
[330992980,1719994249398,-500.0,0.00014002,2]
[330992982,1719994249407,-500.0,0.00014002,2]
[330992984,1719994249421,-500.0,0.00014002,2]
[330992986,1719994249430,-500.0,0.00014002,2]
[330992988,1719994249441,-500.0,0.00014002,2]
[330992990,1719994249450,-802.28,0.00014002,2]
[330992992,1719994249461,-500.0,0.00014002,2]
[330992994,1719994249471,-644.33,0.00014002,2]
[330992996,1719994249482,-3109.71,0.00014002,2]
[330992998,1719994249491,-622.16,0.00014002,2]
[330993000,1719994249505,-500.0,0.00014002,2]
[330993002,1719994249514,-500.0,0.00014002,2]
[330993004,1719994249523,-500.0,0.00014002,2]
[330993006,1719994249532,-392.493565,0.00014002,2]
[330993093,1719994254286,500.0,0.00014,2]
[330993094,1719994259852,183.15863804,0.00013903,2]
[330993095,1719994263777,300.0,0.00014,2]
[330993096,1719994303987,500.0,0.00014,2]
[330993097,1719994321303,300.0,0.00014,2]
[330993098,1719994338866,250.0,0.00013155,2]
[330993099,1719994356638,458.01854157,9.999e-05,2]
[330993100,1719994382464,300.0,0.00014,2]
[330993101,1719994389374,325.94981118,9.999e-05,2]
[330993110,1719994441271,300.0,0.00014,2]
[330993111,1719994461254,158.02405824,9.999e-05,2]
[330993115,1719994534971,355.1440927,0.00013974,2]
[330993116,1719994545515,458.76766533,9.999e-05,2]
[330993125,1719994658037,162.4432013,0.00013699,2]
[330993139,1719994780291,156.12965293,0.00013901,2]
[330993142,1719994847608,229.56642926,0.00014,2]
[330993143,1719994849631,500.86,0.00014,2]
[330993163,1719994870608,1441.23,0.00014,2]
[330993164,1719994875228,713.57,0.00014,2]
[330993165,1719994925341,1264.51,0.00014,2]
[330993166,1719994938803,7081.87,0.00014,2]
[330993167,1719994958598,845.49,0.00014,2]
[330993168,1719994977701,1531.33,0.00014,2]
[330993169,1719995003679,626.83,0.00014,2]
[330993170,1719995007463,500.0,0.00014,2]
[330993195,1719995014411,861.91,0.00014,2]
[330993196,1719995035612,576.02,0.00014,2]
[330993198,1719995072320,500.0,0.00014,2]
[330993200,1719995074325,500.0,0.00014,2]
[330993202,1719995097420,771.37,0.00014,2]
[330993203,1719995101211,500.0,0.00014,2]
[330993204,1719995121573,1381.18,0.00014,2]
[330993205,1719995130450,273.37336231,9.9e-05,2]
[330993206,1719995133817,1679.98,0.00014,2]
[330993207,1719995138319,500.0,0.00014,2]
[330993208,1719995139154,273.37336231,9.9e-05,2]
[330993209,1719995145894,802.68,0.00014,2]
[330993210,1719995146495,500.0,0.00014,2]
[330993211,1719995147709,273.37336231,9.9e-05,2]
[330993212,1719995148901,509.8,0.00014,2]
[330993213,1719995156292,273.37336231,9.9e-05,2]
[330993214,1719995157091,500.0,0.00014,2]
[330993215,1719995164759,273.37336231,9.9e-05,2]
[330993216,1719995165182,686.86,0.00014,2]
[330993217,1719995170301,500.0,0.00014,2]
[330993218,1719995172923,273.37336231,9.9e-05,2]
[330993220,1719995175193,500.0,0.00014,2]
[330993221,1719995180651,156.12965293,0.00013901,2]
[330993222,1719995181835,273.37336231,9.9e-05,2]
[330993224,1719995185758,6786.79,0.00014,2]
[330993225,1719995189929,2124.67,0.00014,2]
[330993226,1719995189968,273.37336231,9.9e-05,2]
[330993228,1719995193047,500.0,0.00014,2]
[330993229,1719995199169,273.37336231,9.9e-05,2]
[330993230,1719995205717,810.26,0.00014,2]
[330993231,1719995205748,6567.05,0.00014,2]
[330993232,1719995207333,273.37336231,9.9e-05,2]
[330993233,1719995215372,500.0,0.00014,2]
[330993234,1719995215751,273.37336231,9.9e-05,2]
[330993235,1719995223831,1467.52,0.00014,2]
[330993236,1719995223863,273.37336231,9.9e-05,2]
[330993237,1719995229416,507.62,0.00014,2]
[330993239,1719995235092,500.0,0.00014,2]
[330993240,1719995237044,500.0,0.00014,2]
[330993242,1719995241115,273.37336231,9.9e-05,2]
[330993243,1719995244615,500.0,0.00014,2]
[330993244,1719995246574,500.0,0.00014,2]
[330993245,1719995249294,273.37336231,9.9e-05,2]
[330993246,1719995251627,500.0,0.00014,2]
[330993247,1719995256490,178.00725529,0.00012,2]
[330993248,1719995259224,806.9,0.00014,2]
[330993249,1719995259700,273.37336231,9.9e-05,2]
[330993250,1719995261876,500.0,0.00014,2]
[330993251,1719995267498,500.0,0.00014,2]
[330993252,1719995267770,660.38,0.00014,2]
[330993253,1719995268894,273.37336231,9.9e-05,2]
[330993254,1719995269109,500.0,0.00014,2]
[330993255,1719995276219,500.0,0.00014,2]
[330993256,1719995277662,3187.13,0.00014,2]
[330993257,1719995278320,273.37336231,9.9e-05,2]
[330993258,1719995278353,534.49,0.00014,2]
[330993259,1719995278397,500.0,0.00014,2]
[330993260,1719995279424,552.01,0.00014,2]
[330993263,1719995286271,500.0,0.00014,2]
[330993264,1719995286579,273.37336231,9.9e-05,2]
[330993266,1719995294632,500.0,0.00014,2]
[330993267,1719995295811,273.37336231,9.9e-05,2]
[330993268,1719995303247,500.0,0.00014,2]
[330993269,1719995304256,273.37336231,9.9e-05,2]
[330993270,1719995304679,500.0,0.00014,2]
[330993271,1719995304816,3040.66702918,0.000225,30]
[330993272,1719995314175,273.37336231,9.9e-05,2]
[330993273,1719995319158,564.49186538,0.00014,2]
[330993274,1719995323878,273.37336231,9.9e-05,2]
[330993276,1719995331638,631.96,0.00014,2]
[330993277,1719995332443,273.37336231,9.9e-05,2]
[330993278,1719995339299,500.0,0.00014,2]
[330993279,1719995342108,273.37336231,9.9e-05,2]
[330993280,1719995343611,500.0,0.00014,2]
[330993281,1719995345852,739.23,0.00014,2]
[330993282,1719995350602,273.37336231,9.9e-05,2]
[330993283,1719995352379,803.73,0.00014,2]
[330993284,1719995358645,273.37336231,9.9e-05,2]
[330993285,1719995361534,500.0,0.00014,2]
[330993286,1719995362342,1323.63,0.00014,2]
[330993287,1719995367759,273.37336231,9.9e-05,2]
[330993288,1719995372801,1609.98,0.00014,2]
[330993289,1719995376010,273.37336231,9.9e-05,2]
[330993290,1719995379344,-500.0,0.00014001,2]